Cogmind - Beta 14 @@@ ROGUE MODE // 2024.09.09 @ 17:24:13 Player: Lunace Result: Destroyed by AT-8VP(E) with Barrage Gun Performance ------------- Evolutions (2) 1000 Regions Visited (10) 2000 Robots Destroyed (68) 340 Value Destroyed (1852) 1852 Prototype IDs (34) 680 Alien Tech Used (0) 0 Bonus (548) 548 TOTAL SCORE: 6420 Bonus ------- High Alert Combat Kills 4 Follower Combat Kills 307 Aligned with FarCom 300 Friendly Fire -63 Cogmind --------- Core Integrity 0/550 Matter 300/300 Energy 100/100 System Corruption 1% Temperature Warm (171) Movement Core (100) Ox1 Location -8/Scraptown Parts ------- > --- POWER (1) -------- (None) > --- PROPULSION (4) --- (None) > --- UTILITY (3) ------ Siege Articulator Siege Articulator > --- WEAPON (3) ------- (None) > --- INVENTORY (5) ---- Fission Core Target Analyzer Cloak of Protection CPS Tube (2) Makeshift Spear Peak State ------------ > --- POWER ------------ F-cell Engine > --- PROPULSION ------- Armored Treads Tri-treads > --- UTILITY ---------- High-capacity Storage Unit Siege Articulator Siege Articulator > --- WEAPON ----------- Siege Cannon > --- INVENTORY -------- Angular Momentum Engine Fission Core Target Analyzer Target Analyzer Target Analyzer Cloak of Protection Light Armor Plating Advanced Beam Cannon Advanced Beam Cannon Advanced Beam Cannon Advanced Beam Cannon Advanced Beam Cannon Plasma Cannon Phase Cannon Rocket Launcher Mini Grenade Launcher CPS Tube Makeshift Spear [Rating: 62] Favorites ----------- Power F-cell Engine Engine F-cell Engine Power Core Fission Core Propulsion Light Treads Treads Light Treads Flight Unit Improved Flight Unit Utility Light Armor Plating Device Improved Heat Sink Storage High-capacity Storage Unit Protection Light Armor Plating Weapon Advanced Beam Cannon Energy Cannon Advanced Beam Cannon Ballistic Gun Shotgun Ballistic Cannon Siege Cannon Launcher Mini Grenade Launcher Special Weapon CPS Tube Piercing Weapon Makeshift Spear Build | -11 -10 -10 -9 -9 -9 -8 -8 -8 -8 -8 ------- Run | Yrd Mat Min Mat Min Exi Min Mat Sto Rec Scr Slots Evolved 4 | . . . 2 . . . 2 . . . Power . | . . . . . . . . . . . Propulsion 2 | . . . 1 . . . 1 . . . Utility 1 | . . . . . . . 1 . . . Weapon 1 | . . . 1 . . . . . . . Parts Attached 63 | 7 6 . 16 3 1 1 3 10 7 9 Power 5 | 1 1 . 1 1 . . . 1 . . Engine 4 | 1 1 . 1 . . . . 1 . . Core 1 | . . . . 1 . . . . . . Reactor . | . . . . . . . . . . . Propulsion 21 | 2 1 . 6 . . . 1 3 4 4 Treads 20 | 2 1 . 5 . . . 1 3 4 4 Leg . | . . . . . . . . . . . Wheel . | . . . . . . . . . . . Hover . | . . . . . . . . . . . Flight 1 | . . . 1 . . . . . . . Utility 16 | 2 1 . 1 . 1 1 2 3 2 3 Device 7 | 1 . . . . 1 . 1 1 . 3 Storage 3 | 1 1 . . . . . 1 . . . Processor . | . . . . . . . . . . . Hackware . | . . . . . . . . . . . Protection 6 | . . . 1 . . 1 . 2 2 . Artifact . | . . . . . . . . . . . Weapon 21 | 2 3 . 8 2 . . . 3 1 2 Energy Gun . | . . . . . . . . . . . Energy Cannon 6 | . . . 3 1 . . . 1 1 . Ballistic Gun 9 | 2 3 . 4 . . . . . . . Ballistic Cannon 1 | . . . . . . . . . . 1 Launcher 3 | . . . 1 1 . . . 1 . . Special Weapon 1 | . . . . . . . . . . 1 Impact Weapon . | . . . . . . . . . . . Slashing Weapon . | . . . . . . . . . . . Piercing Weapon 1 | . . . . . . . . 1 . . Special Melee Weapon . | . . . . . . . . . . . Unidentified Prototypes 4 | . . . 2 . . . . 1 . 1 Parts Lost 10 | . . . . . . . . . . 10 Power 1 | . . . . . . . . . . 1 Propulsion 5 | . . . . . . . . . . 5 Utility 2 | . . . . . . . . . . 2 Weapon 2 | . . . . . . . . . . 2 Highest Loss Streak 5 | . . . . . . . . . . 5 To Critical Strikes . | . . . . . . . . . . . Average Slot Usage (%) 98 | . 99 100 98 100 100 100 99 100 100 95 Engine 8 | . 14 14 11 1 . . . 4 9 9 Core 2 | . . . . 9 11 11 9 4 . . Treads 33 | . 27 28 32 33 33 33 36 36 36 33 Device 7 | . 14 14 4 . 4 3 8 9 9 9 Storage 10 | . 14 14 11 11 11 11 9 9 9 8 Protection 6 | . . . 6 11 6 7 9 9 9 7 Energy Cannon 13 | . . . 8 22 22 22 18 12 16 16 Ballistic Gun 8 | . 28 28 21 . . . . . . . Launcher 3 | . . . 2 11 11 11 9 8 1 . Piercing Weapon 3 | . . . . . . . . 6 9 7 Peak Build Rating 62 | 7 11 10 18 20 27 27 29 30 29 62 Average Rating 22 | 4 7 10 14 19 22 23 28 28 28 32 On Entrance 17 | . 7 10 10 16 20 27 21 29 28 29 Naked Turns . | . . . . . . . . . . . Heaviest Build 80 | 12 32 32 42 42 47 47 70 73 67 80 Greatest Support 80 | 40 40 40 60 60 60 60 80 80 80 80 Greatest Overweight (x) 13 | . . . . . . . . . . 13 Average Overweight (x) . | . . . . . . . . . . . Largest Inventory Capacity 20 | 8 15 15 15 15 15 15 20 20 20 20 Average Capacity 16 | 7 10 15 15 15 15 15 19 20 20 19 Most Carried 20 | 1 13 9 15 12 14 14 13 14 18 20 Average Carried 13 | . 5 9 10 10 13 14 11 11 16 18 Final Capacity 20 | 8 15 15 15 15 15 15 20 20 20 5 Final Carried 18 | 1 9 9 10 12 14 14 11 12 18 5 Class Distribution -------------------- 30% | Commander-Mutant 22% | Scavenger-Tank 17% | Mutant 10% | Scavenger-Mutant 8% | Scavenger-Gunner 7% | Scavenger-Skirmisher Dominant Class ---------------- Mutant | -10/Materials Mutant | -10/Mines Scavenger-Tank | -9/Materials Scavenger-Tank | -9/Mines Scavenger-Tank | -9/Exiles Scavenger-Skirmisher | -8/Mines Scavenger-Skirmisher | -8/Materials Scavenger-Mutant | -8/Storage Commander-Mutant | -8/Recycling Commander-Mutant | -8/Scraptown Resources | -11 -10 -10 -9 -9 -9 -8 -8 -8 -8 -8 ----------- Run | Yrd Mat Min Mat Min Exi Min Mat Sto Rec Scr Matter Collected 1854 | 238 196 114 584 130 . 40 50 139 60 303 Remotely . | . . . . . . . . . . . Salvage Created 2748 | 29 287 48 834 68 . 156 . 398 468 460 Parts 159 | 5 20 4 50 4 . 10 . 26 16 24 Haulers Intercepted 3 | . . . 3 . . . . . . . Recyclers Shooed 2 | . . . . 1 . . . . 1 . Parts Field Recycled . | . . . . . . . . . . . Retrieved Matter . | . . . . . . . . . . . Parts Self-Destructed . | . . . . . . . . . . . Prevented . | . . . . . . . . . . . Kills | -11 -10 -10 -9 -9 -9 -8 -8 -8 -8 -8 ------- Run | Yrd Mat Min Mat Min Exi Min Mat Sto Rec Scr Combat Hostiles Destroyed 57 | . 9 3 13 10 . 3 . 7 7 5 Melee 9 | . . . . . . . . 4 5 . Guns 23 | . 9 3 11 . . . . . . . Cannons 9 | . . . . . . 2 . 1 2 4 AOE 15 | . . . 2 10 . 1 . 2 . . Classes Destroyed 15 | 1 4 . 6 1 . . . . 1 2 Worker 5 | . 1 . 2 1 . 1 . . . . Builder 4 | . . . 2 . . . . 2 . . Tunneler 2 | 1 . . . 1 . . . . . . Hauler 3 | . . . 3 . . . . . . . Recycler 3 | . . . 2 . . . . . 1 . Operator 1 | . 1 . . . . . . . . . Watcher 3 | . . . 2 . . . . 1 . . Swarmer 9 | . 4 3 2 . . . . . . . Grunt 20 | . 5 . 5 . . 3 . 5 2 . Brawler 2 | . . . 1 . . . . . 1 . Duelist 1 | . . . . . . . . . 1 . Sentry 10 | . . . 5 . . . . 2 3 . Explorer 2 | . . . . . . . . . . 2 Guru 1 | . . . . . . . . . . 1 Assembled 10 | . . . . 10 . . . . . . Thug 1 | . . . . . . . . . . 1 Best Kill Streak 11 | 1 5 3 7 11 . 4 . 5 3 3 Combat Bots Only 9 | . 4 3 6 9 . 3 . 4 3 3 Max Kills in Single Turn 3 | 1 1 1 3 3 . 2 . 2 1 1 Gunslinging 1 | . . . 1 . . . . . . . Exploded 3 | . . . 1 3 . 1 . 1 . . Melee 1 | . . . . . . . . 1 1 . Uniques/NPCs Destroyed 1 | . . . . . . . . . . 1 Triborg (-8/Scraptown) Combat | -11 -10 -10 -9 -9 -9 -8 -8 -8 -8 -8 -------- Run | Yrd Mat Min Mat Min Exi Min Mat Sto Rec Scr Hostile Shots Fired 259 | . 40 10 20 11 . 4 . 21 17 136 Missed 70 | . 11 3 12 2 . 2 . 3 3 34 Damage Taken 3934 | . 271 57 149 231 . 32 . 364 238 2592 Core 698 | . 57 9 . 82 . . . 14 . 536 Absorbed by Shields 363 | . . . . . . . . . 12 351 Reduced by Siege Mode 46 | . . . . . . . . . . 46 Regen/Repaired (Parts) 85 | . 30 . 55 . . . . . . . Core Remaining (%) 84 | 100 . 73 . . . 79 . . . . Volleys Fired 146 | 2 29 4 37 11 . 6 . 6 9 42 Largest 3 | 2 2 2 3 3 . 3 . 3 2 2 Hottest 204 | 40 46 46 204 204 . 166 . 204 136 136 Shots Fired 298 | 4 58 8 105 14 . 10 . 15 18 66 Gun 169 | 4 58 8 99 . . . . . . . Cannon 109 | . . . 3 5 . 6 . 12 18 65 Launcher 19 | . . . 3 9 . 4 . 3 . . Special 1 | . . . . . . . . . . 1 Kinetic 186 | 4 58 8 99 . . . . . . 17 Thermal 92 | . . . 3 5 . 6 . 12 18 48 Explosive 19 | . . . 3 9 . 4 . 3 . . Electromagnetic . | . . . . . . . . . . . Robot Hit Streak 20 | 4 11 2 13 9 . 2 . 5 3 20 Robot Miss Streak 9 | . 9 5 6 3 . 1 . 3 3 4 Penetration Max . | . . . . . . . . . . . Secondary Targets 8 | . 4 . 4 . . . . . . . Max Gunslinging Chain 1 | . 1 . 1 . . . . . . . Shots Hit Robots 189 | 4 33 4 61 6 . 3 . 16 23 39 Core Hits 128 | 2 18 3 40 20 . 9 . 15 10 11 Critical Kills 1 | . . . . . . . . . . 1 Critical Parts Destroyed 1 | . . 1 . . . . . . . . Critical Strikes 2 | . . 1 . . . . . . . 1 Meltdown 1 | . . . . . . . . . . 1 Destroy 1 | . . 1 . . . . . . . . Melee Attacks 26 | . . . . . . . . 9 17 . Impact . | . . . . . . . . . . . Slashing . | . . . . . . . . . . . Piercing 26 | . . . . . . . . 9 17 . Sneak Attacks 6 | . . . . . . . . . 6 . Combat Hostiles 4 | . . . . . . . . . 4 . Follow-up Attacks . | . . . . . . . . . . . Damage Inflicted 5680 | 38 443 53 1539 726 . 260 . 619 804 1198 Guns 1521 | 38 443 53 987 . . . . . . . Cannons 1689 | . . . 20 82 . 102 . 143 144 1198 Explosions 1603 | . . . 532 644 . 158 . 269 . . Melee 867 | . . . . . . . . 207 660 . Ramming . | . . . . . . . . . . . Kinetic 2025 | 38 443 53 987 . . . . . . 504 Thermal 1229 | . . . 20 82 . 146 . 143 144 694 Explosive 1559 | . . . 532 644 . 114 . 269 . . Electromagnetic . | . . . . . . . . . . . Impact . | . . . . . . . . . . . Slashing . | . . . . . . . . . . . Piercing 867 | . . . . . . . . 207 660 . Highest Corruption 1 | . . . . . . . . 1 1 1 Average Corruption 1 | . . . . . . . . 1 1 1 Corruption Purged . | . . . . . . . . . . . Corruption Blocked . | . . . . . . . . . . . Effects 11 | . . . . . . . . 2 9 . Message Errors 4 | . . . . . . . . 1 3 . Matter Fused 1 | . . . . . . . . 1 . . Heat Flow Errors 3 | . . . . . . . . . 3 . Energy Discharges 1 | . . . . . . . . . 1 . Data Loss (minor) 2 | . . . . . . . . . 2 . Overload Shots . | . . . . . . . . . . . Overflow Damage 389 | . . . . 43 . . . . 74 272 Projectiles 273 | . . . . . . . . . 1 272 Explosions 43 | . . . . 43 . . . . . . Melee 73 | . . . . . . . . . 73 . Knockbacks 1 | . . . . . . . . . . 1 Impact . | . . . . . . . . . . . Kinetic 1 | . . . . . . . . . . 1 Secondary . | . . . . . . . . . . . Self-Inflicted Damage 127 | . . . . 112 . . . 15 . . Shots 4 | . . . . 3 . . . 1 . . Rammed . | . . . . . . . . . . . Targets Rammed . | . . . . . . . . . . . Kicked . | . . . . . . . . . . . Crushed . | . . . . . . . . . . . Highest Temperature 440 | . . . 147 147 . 300 . 440 261 413 Average Temperature 122 | . . . 50 54 . 155 . 174 116 148 Received Heat Transfer 1157 | . 78 . 33 20 . 18 . 153 77 778 Effects 8 | . . . . . . . . 4 3 1 Shutdowns 1 | . . . . . . . . 1 . . Energy Bleed 1 | . . . . . . . . 1 . . Interference 5 | . . . . . . . . 2 3 . Short Circuit 1 | . . . . . . . . . . 1 Siege Activations 2 | . . . . . . . . . . 2 Total Turns 34 | . . . . . . . . . . 34 Longest Duration 31 | . . . . . . . . . . 31 Robots Corrupted . | . . . . . . . . . . . Combat Hostiles . | . . . . . . . . . . . Parts Fried . | . . . . . . . . . . . Impact Corruptions . | . . . . . . . . . . . Robots Melted 1 | . . . . . . . . . . 1 Combat Hostiles 1 | . . . . . . . . . . 1 Parts Melted 1 | . . . . . . . . 1 . . Heat Transferred 2196 | . . . 37 148 . 235 . 259 259 1258 Parts Sabotaged . | . . . . . . . . . . . Parts Stolen . | . . . . . . . . . . . Parts Stripped . | . . . . . . . . . . . Power Chain Reactions . | . . . . . . . . . . . Alert | -11 -10 -10 -9 -9 -9 -8 -8 -8 -8 -8 ------- Run | Yrd Mat Min Mat Min Exi Min Mat Sto Rec Scr Peak Influence 500 | 5 208 176 500 206 . 156 60 278 323 . Initial 153 | . 3 14 68 153 . . 60 25 108 . Average 168 | . 79 120 267 163 . 91 60 169 172 . Maximum Alert Level 2 | . 1 . 2 1 . . . 1 1 . Low Security (%) 69 | 100 98 100 24 80 . 100 100 48 77 . Level 1 30 | . 1 . 73 19 . . . 51 22 . Level 2 . | . . . 1 . . . . . . . Level 3 . | . . . . . . . . . . . Level 4 . | . . . . . . . . . . . Level 5 . | . . . . . . . . . . . High Security . | . . . . . . . . . . . Max Security . | . . . . . . . . . . . Squads Dispatched 7 | . 2 . 4 . . . . 1 . . Investigation 4 | . 1 . 2 . . . . 1 . . Extermination . | . . . . . . . . . . . Reinforcement 3 | . 1 . 2 . . . . . . . Assault . | . . . . . . . . . . . Garrison . | . . . . . . . . . . . Intercept . | . . . . . . . . . . . Searches Triggered . | . . . . . . . . . . . Construction Impeded . | . . . . . . . . . . . Haulers Reinforced . | . . . . . . . . . . . Active Scanning Responses . | . . . . . . . . . . . Cargo Convoy Interrupts . | . . . . . . . . . . . Stealth | -11 -10 -10 -9 -9 -9 -8 -8 -8 -8 -8 --------- Run | Yrd Mat Min Mat Min Exi Min Mat Sto Rec Scr Distress Signals 4 | . 1 . 3 . . . . . . . Communications Jammed . | . . . . . . . . . . . Distress Signals . | . . . . . . . . . . . Times Spotted 92 | . 11 3 29 12 . 3 . 8 9 17 Peak Tracking Total 9 | . 4 3 4 6 . 3 . 4 3 9 Tactical Retreats 3 | . . . 1 . . . . . 1 1 Traps | -11 -10 -10 -9 -9 -9 -8 -8 -8 -8 -8 ------- Run | Yrd Mat Min Mat Min Exi Min Mat Sto Rec Scr Traps Triggered 4 | . 1 . 1 . . . . 2 . . Indirectly . | . . . . . . . . . . . Trap Hack Attempts . | . . . . . . . . . . . Triggered . | . . . . . . . . . . . Disarmed . | . . . . . . . . . . . Reprogrammed . | . . . . . . . . . . . Reused . | . . . . . . . . . . . Traps Extracted . | . . . . . . . . . . . Installed . | . . . . . . . . . . . Triggered . | . . . . . . . . . . . Machines | -11 -10 -10 -9 -9 -9 -8 -8 -8 -8 -8 ---------- Run | Yrd Mat Min Mat Min Exi Min Mat Sto Rec Scr Machines Disabled 10 | . . . 3 . . 3 . 1 . 3 Max in Single Turn 3 | . . . 2 . . 3 . 1 . 1 Machines Repaired . | . . . . . . . . . . . Machines Dismantled . | . . . . . . . . . . . Machines Sabotaged . | . . . . . . . . . . . Overloaded Fab Kills . | . . . . . . . . . . . Hacking | -11 -10 -10 -9 -9 -9 -8 -8 -8 -8 -8 --------- Run | Yrd Mat Min Mat Min Exi Min Mat Sto Rec Scr Machines Accessed 27 | . 2 1 6 . 2 . . 6 9 1 Terminals 17 | . 1 . 5 . . . . 6 5 . Fabricators . | . . . . . . . . . . . Repair Stations 2 | . 1 . 1 . . . . . . . Recycling Units 4 | . . . . . . . . . 4 . Scanalyzers . | . . . . . . . . . . . Garrison Access . | . . . . . . . . . . . Total Hacks 64 | . 6 1 24 . 2 . . 13 17 1 Successful 39 | . 4 1 16 . 2 . . 5 10 1 Failed 25 | . 2 . 8 . . . . 8 7 . Catastrophic 2 | . . . 1 . . . . 1 . . Database Lockouts . | . . . . . . . . . . . Manual 53 | . 4 . 21 . 1 . . 10 17 . Terminals 52 | . 4 . 22 . . . . 13 13 . Fabricators . | . . . . . . . . . . . Repair Stations 4 | . 2 . 2 . . . . . . . Recycling Units 4 | . . . . . . . . . 4 . Scanalyzers . | . . . . . . . . . . . Garrison Access . | . . . . . . . . . . . Terminal Hacks 13 | . . 1 7 . 2 . . 2 . 1 Record 2 | . . . . . 1 . . . . 1 Prototype ID Bank 6 | . . . 6 . . . . . . . Open Door 3 | . . 1 . . . . . 2 . . Terminal Index 1 | . . . 1 . . . . . . . Derelict Proto ID Bank 1 | . . . . . 1 . . . . . Fabricator Hacks . | . . . . . . . . . . . Repair Station Hacks 4 | . 2 . 2 . . . . . . . Scan Component 2 | . 1 . 1 . . . . . . . Repair 2 | . 1 . 1 . . . . . . . Recycling Unit Hacks . | . . . . . . . . . . . Scanalyzer . | . . . . . . . . . . . Garrison Access Hacks . | . . . . . . . . . . . Unauthorized Hacks 22 | . 2 . 7 . . . . 3 10 . Terminals 18 | . 2 . 7 . . . . 3 6 . Botnet 5 | . 1 . 2 . . . . . 2 . Skim 13 | . 1 . 5 . . . . 3 4 . Fabricators . | . . . . . . . . . . . Repair Stations . | . . . . . . . . . . . Recycling Units 4 | . . . . . . . . . 4 . Tunnel 4 | . . . . . . . . . 4 . Scanalyzers . | . . . . . . . . . . . Garrison Access . | . . . . . . . . . . . Data Cores Recovered . | . . . . . . . . . . . Used . | . . . . . . . . . . . Hacking Detections 17 | . 2 . 5 . . . . 5 5 . Full Trace Events . | . . . . . . . . . . . Feedback Events . | . . . . . . . . . . . Feedback Blocked . | . . . . . . . . . . . Robot Schematics Acquired . | . . . . . . . . . . . Robots Built . | . . . . . . . . . . . Authchips . | . . . . . . . . . . . Time . | . . . . . . . . . . . Total Robot Build Rating . | . . . . . . . . . . . Part Schematics Acquired . | . . . . . . . . . . . Parts Built . | . . . . . . . . . . . Authchips . | . . . . . . . . . . . Time . | . . . . . . . . . . . Total Part Build Rating . | . . . . . . . . . . . Parts Repaired 2 | . 1 . 1 . . . . . . . Time 52 | . 26 . 26 . . . . . . . Parts Recycled . | . . . . . . . . . . . Recycled Matter . | . . . . . . . . . . . Retrieved Matter . | . . . . . . . . . . . Retrieved Components . | . . . . . . . . . . . Parts Scanalyzed . | . . . . . . . . . . . Part Schematics Acquired . | . . . . . . . . . . . Parts Damaged . | . . . . . . . . . . . Bothacking | -11 -10 -10 -9 -9 -9 -8 -8 -8 -8 -8 ------------ Run | Yrd Mat Min Mat Min Exi Min Mat Sto Rec Scr Used RIF Installer . | . . . . . . . . . . . Robots Hacked . | . . . . . . . . . . . Non-combat . | . . . . . . . . . . . Combat . | . . . . . . . . . . . Robot Hacks Applied . | . . . . . . . . . . . Relay Couplers Released . | . . . . . . . . . . . Fabnet Peak Effective % . | . . . . . . . . . . . Robots Rewired 14 | . . . . . . . . . 14 . Allies Hacked . | . . . . . . . . . . . Hacks Repelled . | . . . . . . . . . . . Allies | -11 -10 -10 -9 -9 -9 -8 -8 -8 -8 -8 -------- Run | Yrd Mat Min Mat Min Exi Min Mat Sto Rec Scr Total Allies 17 | . . 3 . . . . . . 14 . Largest Group 13 | . . 3 3 . . . . . 13 13 Highest-Rated Group 281 | . . 40 40 . . . . . 281 281 Highest-Rated Ally 34 | . . 16 16 . . . . . 34 34 Total Orders 13 | . . . . . . . . . . 13 STAY 13 | . . . . . . . . . . 13 Ally Attacks 82 | . . 6 23 1 . . . . 11 41 Total Damage 1792 | . . 35 286 16 . . . . 130 1325 Kills 16 | . . 3 3 . . . . . 3 7 Allies Corrupted 1 | . . . . . . . . . . 1 Allies Melted . | . . . . . . . . . . . Intel | -11 -10 -10 -9 -9 -9 -8 -8 -8 -8 -8 ------- Run | Yrd Mat Min Mat Min Exi Min Mat Sto Rec Scr Robot Analysis Total . | . . . . . . . . . . . Derelict Logs Recovered . | . . . . . . . . . . . Drone Launches . | . . . . . . . . . . . Drone Recoveries . | . . . . . . . . . . . Exploration | -11 -10 -10 -9 -9 -9 -8 -8 -8 -8 -8 ------------- Run | Yrd Mat Min Mat Min Exi Min Mat Sto Rec Scr Turns Passed 5947 | 83 515 397 1051 454 395 183 122 394 1204 1149 Spaces Moved 2967 | 44 206 210 409 255 246 103 75 203 605 611 Core 7 | 5 . . . . . . . . . 2 Treads 2960 | 39 206 210 409 255 246 103 75 203 605 609 Legs . | . . . . . . . . . . . Wheels . | . . . . . . . . . . . Hover . | . . . . . . . . . . . Flight . | . . . . . . . . . . . Fastest Speed 50 | 50 160 160 160 160 160 160 160 160 160 145 Average Speed 160 | 147 160 160 160 160 160 160 160 160 160 163 Slowest Speed 700 | 160 160 160 160 160 160 160 160 160 160 700 Overloaded Moves . | . . . . . . . . . . . Propulsion Burnouts . | . . . . . . . . . . . Robots Hopped . | . . . . . . . . . . . Cave-ins Triggered . | . . . . . . . . . . . Exploration Rate (%) 48 | 5 45 59 54 73 64 24 8 42 97 57 Regions Visited 10 Branch Regions 7 Pre-discovered Areas 5 | . . . . . 1 . . . 4 . Known Exits Taken 2 | . . . . . . 1 1 . . . Unknown Exits Taken 8 | 1 1 1 1 1 1 . . 1 1 . Scrap Searched 6 | . . 1 . 2 . . . . . 3 Spaces Dug 1 | . . . . . . . . . 1 . Terrain Destroyed 203 | . . . 63 88 . 27 . 13 1 11 Melee 1 | . . . . . . . . . 1 . Projectile 12 | . . . . 1 . . . . . 11 AOE 190 | . . . 63 87 . 27 . 13 . . Terrain Rammed . | . . . . . . . . . . . Walls Destroyed . | . . . . . . . . . . . Machines Disabled . | . . . . . . . . . . . Actions | -11 -10 -10 -9 -9 -9 -8 -8 -8 -8 -8 --------- Run | Yrd Mat Min Mat Min Exi Min Mat Sto Rec Scr Total 3870 | 55 334 263 738 286 248 112 78 250 806 700 Wait 464 | 2 76 50 241 17 . 3 . 15 40 20 Move 2957 | 43 205 209 408 254 245 102 74 202 604 611 Hop . | . . . . . . . . . . . Pick Up 39 | 1 11 . 13 1 1 . . . 6 6 Fast Attach 26 | 7 1 . 10 . 1 . . 2 1 4 Attach 8 | . . . 1 . . . 3 . 1 3 Detach 6 | . . . 1 . 1 . . 2 . 2 Swap 29 | . 5 . 5 3 . 1 . 8 5 2 Drop 51 | . 7 . 22 . . . 1 6 5 10 Fire 146 | 2 29 4 37 11 . 6 . 6 9 42 Melee 26 | . . . . . . . . 9 17 . Ram . | . . . . . . . . . . . Kick . | . . . . . . . . . . . Crush . | . . . . . . . . . . . Escape Stasis . | . . . . . . . . . . . Rewire 118 | . . . . . . . . . 118 . Trap . | . . . . . . . . . . . Miscellaneous . | . . . . . . . . . . . Route ------- -11/Scrapyard -10/Materials (discovered 2 exits: *Mat / *Min) -10/Mines -9/Materials (discovered 4 exits: *Mat x3 / [*Min]) -9/Mines (discovered 3 exits: *Mat x2 / *Exi) -9/Exiles -8/Mines (discovered 2 exits: *Mat x2) -8/Materials (discovered 2 exits: Fac / *Sto) -8/Storage -8/Recycling (discovered 2 exits: *Fac / *Scr) -8/Scraptown (discovered 1 exit: *Fac) History --------- Turn | Location | Event 40 | -11/Scrapyard | Discovered new exit (range 12) 84 | -11/Scrapyard | Entered Materials 249 | -10/Materials | Repaired Lgt. Treads 308 | -10/Materials | Build established: Mutant 385 | -10/Materials | Discovered new exit (range 13) 555 | -10/Materials | Discovered new exit (range 16) 599 | -10/Materials | Entered Mines 612 | -10/Mines | Assisted by bots powering up and referring to "LRC-V3" 850 | -10/Mines | Met a Derelict who couldn't figure out how to use a Trap Extractor 962 | -10/Mines | Discovered new exit (range 7) 996 | -10/Mines | Entered Materials 996 | -9/Materials | Accompanied by 3 allies 996 | -9/Materials | Evolved 2 slots: Propulsion x1, Weapon x1 1095 | -9/Materials | Repaired Lgt. Treads 1266 | -9/Materials | Discovered new exit (range 7) 1387 | -9/Materials | Build established: Scavenger-Gunner 1713 | -9/Materials | Build established: Scavenger-Tank 1791 | -9/Materials | Discovered new exit (range 7) 1880 | -9/Materials | Loaded intel: 9 trap records 1921 | -9/Materials | Identified exit to Materials 1954 | -9/Materials | Learned 4 Recycling zone layouts 2038 | -9/Materials | Learned location of 2 exits from Materials 2047 | -9/Materials | Entered Mines 2047 | -9/Mines | Accompanied by 1 ally 2048 | -9/Mines | Assembled infested the area 2053 | -9/Mines | Assisted by a Guerilla fighting off Assembled 2133 | -9/Mines | Destroyed 9 combat bots 2453 | -9/Mines | A weapon hastily lodged in a ceiling crevice suddenly fell to the ground 2494 | -9/Mines | Deemed a non-threat by the Exiles lab entrance 2494 | -9/Mines | Discovered new exit (range 5) 2501 | -9/Mines | Entered Exiles 2541 | -9/Exiles | Met 8R-AWN 2567 | -9/Exiles | Met EX-HEX 2672 | -9/Exiles | Met EX-BIN 2693 | -9/Exiles | Aligned with FarCom system 2694 | -9/Exiles | Given EX-Vault access code 2731 | -9/Exiles | Opened EX-Vault 2741 | -9/Exiles | Found Cloak of Protection 2775 | -9/Exiles | Warned to stay clear of 0b10 Research branches 2820 | -9/Exiles | Met EX-DEC 2826 | -9/Exiles | Learned location of Zion (-6) 2879 | -9/Exiles | Discovered new exit (range 14) 2896 | -9/Exiles | Left Exiles lab with Cloak of Protection 2896 | -9/Exiles | Entered Mines 3079 | -8/Mines | Entered Materials 3079 | -8/Materials | Evolved 2 slots: Propulsion x1, Utility x1 3080 | -8/Materials | Identified exit to Factory 3080 | -8/Materials | Identified exit to Storage 3198 | -8/Materials | Build established: Scavenger-Skirmisher 3201 | -8/Materials | Entered Storage 3543 | -8/Storage | Used back door to open Recycling access 3543 | -8/Storage | Discovered new exit (range 5) 3595 | -8/Storage | Entered Recycling 3596 | -8/Recycling | Identified exit to Factory 3646 | -8/Recycling | Build established: Scavenger-Mutant 4230 | -8/Recycling | Build established: Commander-Mutant 4726 | -8/Recycling | Scanned before Scraplab entrance 4748 | -8/Recycling | Entered Scraplab 4761 | -8/Recycling | Discovered new exit (range 2) 4799 | -8/Recycling | Entered Scraptown 4799 | -8/Scraptown | Accompanied by 13 allies 4799 | -8/Scraptown | System corruption cleaned by C-Scrubber 5143 | -8/Scraptown | Discovered exit to Factory (range 11) 5225 | -8/Scraptown | Visited TADAMA 5250 | -8/Scraptown | Visited Spacefarers 5301 | -8/Scraptown | Visited SPCMW 5319 | -8/Scraptown | Visited CPS Storage 5356 | -8/Scraptown | Visited Awakened 5612 | -8/Scraptown | Visited Shadow of the Wyrm 5646 | -8/Scraptown | Visited Cyclists 5717 | -8/Scraptown | Turned away by UFD registrar 5784 | -8/Scraptown | Attacked by Scraptown defenders 5816 | -8/Scraptown | Destroyed Triborg 5843 | -8/Scraptown | Lost 12 allies 5844 | -8/Scraptown | Lost 5 parts (3n2u) 5866 | -8/Scraptown | Found Tri-treads 5870 | -8/Scraptown | Found Siege Articulator 5875 | -8/Scraptown | Found Prototype Ballistic Cannon 5875 | -8/Scraptown | Identified Siege Cannon 5928 | -8/Scraptown | Found Siege Articulator 5930 | -8/Scraptown | Core integrity fell below 50% 5947 | -8/Scraptown | Core integrity fell below 20% 5948 | -8/Scraptown | Destroyed by AT-8VP(E) with Barrage Gun Last Messages --------------- 05928_ Acquired Siege Articulator. 05929_ Siege Cannon recoils violently, damaging core (-46). 05929_ Siege Slug penetrates Wall. 05930_ Acquired 24 matter. 05930_ Activated siege mode. 05931_ Siege Slug penetrates 08-6ZJ(E). 05932_ Acquired 4 matter. 05932_ Tri-treads destroyed. 05932_ Critical hit (Burn: +50). 05934_ Z4-77J(j) overheating. 05935_ Arm. Treads destroyed. 05937_ Critical hit (Burn: +50). 05937_ Z4-77J(j) overheating. 05937_ Dropped Hcp. Storage Unit. 05938_ Z4-77J(j) overheating. 05942_ Critical hit (Burn: +50). 05943_ ZV-R8I(j) suffers critical hit (Destroy). 05945_ F-cell Engine destroyed. 05947_ Siege Cannon destroyed. Map ----- +----------------------------------------------------+ | # #???#" "#???????????????????? | | # #???#X "#???????????????????? | | ## # #???#" "#???????????????????? | | # # #???# #???????????????????? | | ## ### ################## ####?????????????????? | | #?????????????????? | | #?????????????????? | | #?????????????????? | | #?????????????????? | | #?????????????????? | | ################" #?????????????????? | | #???????????????; #?????????????????? | | #?????????????##; %c #?????????????????? | | #?????????????? ; #?????????????????? | | #??????????????#% %* #?????????????????? | | #???????????????;jE #?????????????????? | | ######??????????# j c*! ###?#?????????????? | | # """"#?????????# j !%= ""#"#""???????????? | | # ||| #?????????# [[! """"#""???????????? | | # """"#?????????# ""##"#????????????? | | # ||| #?????????# ### #?????????????? | | # """"#?????????# * ##;##?????????????? | | # | | #?????????# ]/]]] "?????????????? | | # """"#?????????# !%!!!] j "?????????????? | | # #?????????# ]!!!!*= "?????????????? | | # #?????????# !@*=%=!= """ ???????? | | #### ############ *%![=!!= E"??????????? | | % ]!%%!]! " ""??????????? | | !/!%] "?????????????? | | % ! "?????????????? | | % "?????????????? | | == "?????????????? | | #"?????????????? | | #??????????????? | | #??????????????? | | ######### #### # # ## ; ####??????????????? | | ??# #??? # % #?????????????????? | | ?# """""" #?? #" =% ?????????????????? | | ?# "" "" #????#" = j ?????????????????? | | ?? " " #????#" % # #????????????????? | | ?? " " #????#" " %! ????????????????? | | ?# " " #????#" """ ##????????????????? | | ?# " " #????#" ????????????????? | | ?? "" "" #????#" ? " ?????????????????? | | ?? """""" ?#????#"????""""# #?????????????????? | | ??? ? ????????????##### #?????????????????? | | ??????#????????????????????# #?????????????????? | | ????????????????############ #?????????????????? | | ????????????????#""""""""""" #?????????????????? | | ????????????????#""""" """"" #?????????????????? | +----------------------------------------------------+ Best States ------------- Heat Dissipation 45 Coolant Potential 65 Energy Generation 19 Energy Capacity 500 Matter Stores 300 Matter Capacity 300 Sight Range 16 Terrain Scan Density 10 Cloak Strength 5 Armor Coverage 225 Evasion (%) 40 Recoil Reduction 4 Item Schematics ----------------- None Robot Schematics ------------------ None Fabricated ------------ Nothing Alien Tech Used ----------------- None Achievements -------------- None Challenges ------------ None Game ------ Seed CobblerGunFrame Manual? 0 Play Time 00:38:53 Cumulative 343.6 hours Start 2024.09.09 @ 16:03:13 End 2024.09.09 @ 17:24:13 Sessions 3 Manual Loads 0 Difficulty Rogue Special Mode None Game No. 350 Rogue 345 Adventurer 5 Explorer 0 Win Type - Total 5 Types 4/0/0/1/0/0/0/0/0 Lore% 77 Gallery% 83 Achievement% 68 Wizard Run 0 Options --------- Layout 1 ASCII 0 Keyboard 0 Movement Arrows Keybinds 0 Fullscreen 1 Font 24/Terminus Map View 50x35 Zoom Use 0% Tactical HUD 1 Map Filters NONE Filters NONE Steam 1 RUN: ae2ff586-9b8f-49a4-bfe0-00bec8391bd3